[Event "360 One Wealth GP-3 2024"]
[Site "Mumbai"]
[Date "2024.02.11"]
[Round "7.3"]
[White "Arnav Mahesh Koli"]
[Black "Pawar Sohum"]
[Result "1-0"]
[ECO "C50"]
[WhiteElo "1755"]
[BlackElo "1442"]
[Annotator "NA RC"]
[PlyCount "117"]
[EventDate "2024.02.04"]
[EventType "swiss"]
[EventCountry "IND"]
[SourceTitle "playchess.com"]
[Source "ChessBase"]
[SourceQuality "1"]
[TimeControl "5400+30"]

1. e4 {[%emt 0:04:49]} e5 {[%emt 0:00:06]} 2. Nf3 {[%emt 0:00:03]} Nc6 {[%emt 0:00:06]} 3. Bc4 {[%emt 0:00:04]} Bc5 {[%emt 0:00:08]} 4. Nc3 {[%emt 0:00:11]} Nf6 {[%emt 0:00:31]} 5. d3 {[%emt 0:00:13]} a6 {[%emt 0:01:26]} 6. a3 {[%emt 0:06:38]} d6 {[%emt 0:00:31]} 7. h3 {[%emt 0:00:34]} h6 {[%emt 0:00:28]} 8. Be3 {[%emt 0:00:57]} Qe7 {[%emt 0:04:26]} 9. Qd2 {[%emt 0:02:09]} Bd7 {[%emt 0:05:34]} 10. O-O-O {[%emt 0:01:11]} b5 {[%emt 0:00:55]} 11. Nd5 {[%emt 0:01:34]} Nxd5 {[%emt 0:00:08]} 12. Bxd5 {[%emt 0:00:05]} Rb8 {[%emt 0:01:17]} 13. b4 {[%emt 0:02:06]} Bxe3 {[%emt 0:03:28]} 14. Qxe3 {[%emt 0:00:59]} Rb6 {[%emt 0:03:19]} 15. g4 {[%emt 0:02:58]} g6 {[%emt 0:02:21]} 16. d4 {[%emt 0:01:51]} Kf8 {[%emt 0:14:01]} 17. dxe5 {[%emt 0:05:15]} dxe5 {[%emt 0:00:43]} 18. Qc5 {[%emt 0:00:22]} f6 {[%emt 0:01:30]} 19. Bxc6 {[%emt 0:05:27]} Rxc6 {[%emt 0:03:20]} 20. Rxd7 {[%emt 0:00:13]} Rxc5 {[%emt 0:00:02]} 21. Rxe7 {[%emt 0:00:02]} Rc3 {[%emt 0:00:01]} 22. Rd7 {[%emt 0:00:01]} Rxf3 {[%emt 0:00:10]} 23. Rhd1 {[%emt 0:00:28]} Rg8 {[%emt 0:01:15]} 24. Rxc7 {[%emt 0:01:06]} Ke8 {[%emt 0:00:42]} 25. Rd6 {[%emt 0:00:57]} Rxa3 {[%emt 0:02:10]} 26. Kb2 {[%emt 0:00:40]} Ra4 {[%emt 0:00:26]} 27. c3 {[%emt 0:00:03]} a5 {[%emt 0:00:25]} 28. Rb6 {[%emt 0:00:13]} Kd8 {[%emt 0:00:19]} 29. Ra7 {[%emt 0:00:10]} Kc8 {[%emt 0:00:28]} 30. Rxb5 {[%emt 0:00:04]} Rd8 {[%emt 0:01:16]} 31. Ra8+ {[%emt 0:00:06]} Kc7 {[%emt 0:00:29]} 32. Rxd8 {[%emt 0:00:08]} Kxd8 {[%emt 0:00:07]} 33. Rxa5 {[%emt 0:00:04]} Rxa5 {[%emt 0:00:09]} 34. bxa5 {[%emt 0:01:07]} Kd7 {[%emt 0:00:10]} 35. Kb3 {[%emt 0:00:00]} Kc6 {[%emt 0:01:06]} 36. Kc4 {[%emt 0:00:20]} h5 {[%emt 0:00:18]} 37. gxh5 gxh5 38. h4 {[%emt 0:00:00]} Kd6 {[%emt 0:00:40]} 39. Kb5 {[%emt 0:00:00]} Ke6 {[%emt 0:00:09]} 40. Kc6 {[%emt 0:00:00]} f5 {[%emt 0:00:05]} 41. f3 {[%emt 0:00:00]} fxe4 {[%emt 0:00:42]} 42. fxe4 {[%emt 0:00:00]} Ke7 {[%emt 0:00:09]} 43. Kc7 {[%emt 0:00:00]} Ke6 {[%emt 0:00:05]} 44. a6 {[%emt 0:00:00]} Ke7 {[%emt 0:00:15]} 45. a7 {[%emt 0:00:00]} Ke6 {[%emt 0:00:03]} 46. a8=Q {[%emt 0:00:00]} Ke7 {[%emt 0:00:04]} 47. Qh8 {[%emt 0:00:00]} Ke6 {[%emt 0:00:08]} 48. Qxh5 {[%emt 0:00:00]} Kf6 {[%emt 0:00:07]} 49. Kd6 {[%emt 0:00:00]} Kg7 {[%emt 0:00:08]} 50. Ke7 {[%emt 0:00:13]} Kg8 {[%emt 0:00:18]} 51. Qg5+ {[%emt 0:00:05]} Kh7 {[%emt 0:00:13]} 52. Kf7 {[%emt 0:00:02]} Kh8 {[%emt 0:00:10]} 53. c4 {[%emt 0:00:06]} Kh7 {[%emt 0:00:05]} 54. c5 {[%emt 0:00:03]} Kh8 {[%emt 0:00:05]} 55. c6 {[%emt 0:00:03]} Kh7 {[%emt 0:00:06]} 56. c7 {[%emt 0:00:05]} Kh8 {[%emt 0:00:13]} 57. h5 {[%emt 0:00:03]} Kh7 {[%emt 0:00:10]} 58. Qg6+ {[%emt 0:00:07]} Kh8 {[%emt 0:00:06]} 59. c8=Q# {[%emt 0:00:05]} 1-0

[Event "360 One Wealth GP-3 2024"]
[Site "Mumbai"]
[Date "2024.02.11"]
[Round "7.4"]
[White "Muthe Dhruv"]
[Black "Kapadi Yash"]
[Result "0-1"]
[ECO "B06"]
[WhiteElo "1169"]
[BlackElo "1626"]
[Annotator "NA RC"]
[PlyCount "64"]
[EventDate "2024.02.04"]
[EventType "swiss"]
[EventCountry "IND"]
[SourceTitle "playchess.com"]
[Source "ChessBase"]
[SourceQuality "1"]
[TimeControl "5400+30"]

1. e4 {[%emt 0:00:04]} g6 {[%emt 0:04:41]} 2. d3 {[%emt 0:01:27]} Bg7 {[%emt 0:00:09]} 3. Nf3 {[%emt 0:00:44]} c5 {[%emt 0:00:32]} 4. c3 {[%emt 0:01:23]} d5 {[%emt 0:00:10]} 5. Nbd2 {[%emt 0:01:53]} Nc6 {[%emt 0:01:34]} 6. g3 {[%emt 0:05:35]} Nf6 {[%emt 0:03:48]} 7. e5 {[%emt 0:01:19]} Ng4 {[%emt 0:00:34]} 8. d4 {[%emt 0:00:16]} cxd4 {[%emt 0:01:19]} 9. cxd4 {[%emt 0:00:16]} Qb6 {[%emt 0:00:28]} 10. Nb3 {[%emt 0:02:41]} Bf5 {[%emt 0:05:04]} 11. Bd3 {[%emt 0:07:29]} Bxd3 {[%emt 0:02:35]} 12. Qxd3 {[%emt 0:00:08]} Nb4 {[%emt 0:00:50]} 13. Qc3 {[%emt 0:02:33]} Qb5 {[%emt 0:03:17]} 14. Nc5 {[%emt 0:02:13]} b6 {[%emt 0:01:22]} 15. a4 {[%emt 0:02:23]} Qc4 {[%emt 0:03:02]} 16. Qxc4 {[%emt 0:03:46]} dxc4 {[%emt 0:00:04]} 17. O-O {[%emt 0:02:34]} bxc5 {[%emt 0:00:01]} 18. h3 {[%emt 0:00:27]} Nh6 {[%emt 0:00:25]} 19. dxc5 {[%emt 0:01:30]} Rc8 {[%emt 0:00:50]} 20. a5 {[%emt 0:05:40]} O-O {[%emt 0:02:50]} 21. Ra4 {[%emt 0:02:26]} Nd3 {[%emt 0:05:59]} 22. Rxc4 {[%emt 0:00:27]} Rxc5 {[%emt 0:00:22]} 23. Rxc5 {[%emt 0:01:02]} Nxc5 {[%emt 0:00:00]} 24. Be3 {[%emt 0:00:22]} Nb3 {[%emt 0:00:41]} 25. Rd1 {[%emt 0:02:12]} Nxa5 {[%emt 0:00:24]} 26. Rd7 {[%emt 0:00:50]} Nc6 {[%emt 0:10:21]} 27. Rc7 {[%emt 0:03:47]} Nxe5 {[%emt 0:01:03]} 28. Nxe5 {[%emt 0:00:30]} Bxe5 {[%emt 0:00:02]} 29. Rxe7 {[%emt 0:00:19]} Bf6 {[%emt 0:00:42]} 30. Rxa7 {[%emt 0:04:19]} Nf5 31. Bc5 {[%emt 0:05:16]} Rc8 {[%emt 0:02:05]} 32. b4 {[%emt 0:00:27]} Bd4 {[%emt 0:02:16]} 0-1

[Event "360 One Wealth GP-3 2024"]
[Site "Mumbai"]
[Date "2024.02.11"]
[Round "7.5"]
[White "Raghav, Srivathsav V"]
[Black "Arnav Ashish Thatte"]
[Result "1-0"]
[ECO "A06"]
[WhiteElo "2017"]
[BlackElo "1280"]
[Annotator "TA"]
[PlyCount "57"]
[EventDate "2024.02.04"]
[EventType "swiss"]
[EventCountry "IND"]
[SourceTitle "playchess.com"]
[Source "ChessBase"]
[SourceQuality "1"]
[TimeControl "5400+30"]

{[%evp 9,56,-7,-5,-7,-3,-8,3,-20,-14,-12,-12,-23,-25,-24,-16,-21,2,0,19,6,4,6,7,10,4,0,5,0,9,-28,20,9,13,27,147,44,112,164,77,-24,264,223,609,602,29994,29995,29995,29996,29999]} 1. Nf3 {[%emt 0:04:37]} Nf6 {[%emt 0:00:31]} 2. b3 {[%emt 0:00:08]} d5 {[%emt 0:00:18]} 3. Bb2 {[%emt 0:00:07]} c5 {[%emt 0:00:29]} 4. e3 {[%emt 0:00:08]} g6 {[%emt 0:00:42]} 5. Be2 {[%emt 0:01:16]} Bg7 {[%emt 0:00:31]} 6. d3 {[%emt 0:00:57]} Nc6 {[%emt 0:00:45]} 7. Ne5 {[%emt 0:01:15]} O-O {[%emt 0:05:17]} 8. Nd2 {[%emt 0:02:20] The position is equal.} Nxe5 {[%emt 0:07:04]} 9. Bxe5 {[%emt 0:00:24]} b6 {[%emt 0:00:29]} 10. f4 {[%emt 0:04:33]} Bb7 {[%emt 0:01:11]} 11. Bf3 {[%emt 0:00:08]} Qd7 {[%emt 0:00:46]} 12. O-O {[%emt 0:06:09]} Rfd8 {[%emt 0:02:26]} 13. a4 {[%emt 0:00:42]} a6 {[%emt 0:02:13]} 14. g4 {[%emt 0:00:46][%cal Bg2g4,Bg4g5][%mdl 32]} Rac8 {[%emt 0:17:44]} 15. g5 {[%emt 0:09:57]} Ne8 {[%emt 0:00:34]} 16. Bg4 {[%emt 0:00:42]} e6 {[%emt 0:01:03]} 17. Nf3 {[%emt 0:02:15]} Nd6 {[%emt 0:08:40]} 18. Qe1 {[%emt 0:01:13]} (18. Bxg7 {is interesting.} Kxg7 19. Qe1 Nf5 20. h4) 18... Nf5 {[%emt 0:09:30]} 19. Bh3 {[%emt 0:02:21]} (19. Bxg7 {feels hotter.} Kxg7 20. Ne5 Qe7 21. h4) 19... Bxe5 {[%emt 0:02:55]} (19... Qe7 $142) 20. Nxe5 $11 {[%emt 0:00:09]} Qe7 {[%emt 0:00:25]} 21. Ng4 {[%emt 0:02:10]} Kg7 {[%emt 0:05:45]} (21... h5 $11 {keeps the balance.} 22. Nf6+ Kf8) 22. e4 $16 {[%emt 0:03:41]} dxe4 {[%emt 0:01:15]} 23. dxe4 {[%emt 0:00:02]} Nd4 {[%emt 0:00:11]} 24. Ra2 {[%emt 0:02:00]} ({White should try} 24. Qh4 $1 $16 {[%cal Rh4h6] Black must now prevent Qh6+.} Kh8 (24... Bxe4 $2 {perishes.} 25. Qh6+ Kh8 26. Nf6 $18) 25. f5 Ne2+ (25... gxf5 $2 26. Nf6 $18) (25... Nxc2 $2 26. fxg6 fxg6 27. Ne5 $18) 26. Kf2) 24... Qd6 $2 {[%emt 0:07:47][%mdl 8192] [#] Loses the game.} (24... c4 $11 {and Black has nothing to worry.} 25. Bg2 c3 (25... cxb3 26. cxb3 Kh8 27. b4 $15)) 25. c3 $1 $18 {[%emt 0:00:38]} Nxb3 $2 {[%emt 0:00:51] [#]} (25... c4) 26. Qh4 $1 {[%emt 0:00:19] Threatening mate with Qh6+.} Nd2 {[%emt 0:05:17][%cal Og7f8]} 27. Qh6+ {[%emt 0:00:33] White mates.} Kh8 {[%emt 0:00:40] [#]} 28. Nf6 $1 {[%emt 0:00:18][%csl Gf6][%cal Rh6h7]} Nxf1 {[%emt 0:03:47]} (28... Nf3+ 29. Rxf3) 29. Qxh7# {[%emt 0:00:10] Weighted Error Value: White=0.08 (flawless) /Black=0.87.  Loses game:     	---       	Black=1      Mistake:       	White=1     	Black=3      Inaccurate:     	White=1     	Black=1      OK:         	White=6     	Black=6      Best:        	White=1     	Black=1      Strong:       	White=2     	---} 1-0

[Event "360 One Wealth GP-3 2024"]
[Site "Mumbai"]
[Date "2024.02.11"]
[Round "7.6"]
[White "Kherdekar Arnav"]
[Black "Reyaansh Venkat"]
[Result "1-0"]
[ECO "D02"]
[WhiteElo "1693"]
[BlackElo "1201"]
[Annotator "NA RC"]
[PlyCount "77"]
[EventDate "2024.02.04"]
[EventType "swiss"]
[EventCountry "IND"]
[SourceTitle "playchess.com"]
[Source "ChessBase"]
[SourceQuality "1"]
[TimeControl "5400+30"]

1. d4 {[%emt 0:07:30]} d5 {[%emt 0:00:15]} 2. Bf4 {[%emt 0:00:05]} Nf6 {[%emt 0:00:36]} 3. e3 {[%emt 0:00:02]} c6 {[%emt 0:01:12]} 4. Nf3 {[%emt 0:00:09]} Bf5 {[%emt 0:03:12]} 5. c4 {[%emt 0:00:07]} e6 {[%emt 0:01:21]} 6. Qb3 {[%emt 0:00:13]} Qb6 {[%emt 0:03:03]} 7. Nc3 {[%emt 0:00:19]} Qxb3 {[%emt 0:04:39]} 8. axb3 {[%emt 0:00:02]} Nbd7 {[%emt 0:05:16]} 9. c5 {[%emt 0:00:22]} Nh5 {[%emt 0:05:02]} 10. b4 {[%emt 0:00:15]} Nxf4 {[%emt 0:04:08]} 11. exf4 {[%emt 0:00:08]} f6 {[%emt 0:10:25]} 12. Kd2 {[%emt 0:05:24]} Bg4 {[%emt 0:08:53]} 13. Be2 {[%emt 0:01:30]} Bxf3 {[%emt 0:04:07]} 14. Bxf3 {[%emt 0:00:25]} e5 {[%emt 0:00:55]} 15. fxe5 {[%emt 0:01:11]} fxe5 {[%emt 0:00:54]} 16. dxe5 {[%emt 0:00:15]} b6 {[%emt 0:14:10]} 17. cxb6 {[%emt 0:04:29]} Nxb6 {[%emt 0:00:45]} 18. b5 {[%emt 0:00:09]} c5 {[%emt 0:10:16]} 19. Kc2 {[%emt 0:00:52]} Rd8 {[%emt 0:02:09]} 20. Rxa7 {[%emt 0:00:29]} Be7 {[%emt 0:03:21]} 21. Rb7 {[%emt 0:00:39]} d4 {[%emt 0:01:25]} 22. Bc6+ {[%emt 0:01:03]} Kf8 {[%emt 0:01:56]} 23. Rxb6 {[%emt 0:00:12]} dxc3 {[%emt 0:00:15]} 24. bxc3 {[%emt 0:00:03]} Kf7 {[%emt 0:00:50]} 25. c4 {[%emt 0:00:25]} h5 {[%emt 0:01:30]} 26. Bd5+ {[%emt 0:00:07]} Kf8 {[%emt 0:00:16]} 27. Ra1 {[%emt 0:00:39]} Rh6 {[%emt 0:00:27]} 28. Rb7 {[%emt 0:00:11]} Rg6 {[%emt 0:01:09]} 29. Raa7 {[%emt 0:00:11]} Bh4 {[%emt 0:00:32]} 30. g3 {[%emt 0:00:07]} Bg5 {[%emt 0:00:48]} 31. f4 {[%emt 0:00:04]} Bh6 {[%emt 0:00:22]} 32. Rf7+ {[%emt 0:00:07]} Kg8 {[%emt 0:00:32]} 33. Rxg7+ {[%emt 0:00:10]} Kf8 {[%emt 0:00:37]} 34. Rxg6 {[%emt 0:00:19]} Bg7 {[%emt 0:00:33]} 35. Rgxg7 {[%emt 0:00:02]} Rxd5 {[%emt 0:00:31]} 36. cxd5 {[%emt 0:00:07]} h4 {[%emt 0:00:24]} 37. Rgb7 {[%emt 0:00:05]} hxg3 {[%emt 0:00:21]} 38. hxg3 {[%emt 0:00:07]} Kg8 {[%emt 0:00:36]} 39. Rb8# {[%emt 0:00:28]} 1-0

[Event "360 One Wealth GP-3 2024"]
[Site "Mumbai"]
[Date "2024.02.11"]
[Round "7.7"]
[White "Ishaan A Tendolkar"]
[Black "Kush Ajay Agarwal"]
[Result "1/2-1/2"]
[ECO "D25"]
[WhiteElo "1451"]
[BlackElo "1458"]
[Annotator "NA RC"]
[PlyCount "91"]
[EventDate "2024.02.04"]
[EventType "swiss"]
[EventCountry "IND"]
[SourceTitle "playchess.com"]
[Source "ChessBase"]
[SourceQuality "1"]
[TimeControl "5400+30"]

1. d4 {[%emt 0:01:34]} d5 {[%emt 0:00:18]} 2. c4 {[%emt 0:00:30]} dxc4 {[%emt 0:00:30]} 3. e3 {[%emt 0:00:36]} Be6 {[%emt 0:00:18]} 4. Nf3 {[%emt 0:01:51]} c6 {[%emt 0:00:12]} 5. Nc3 {[%emt 0:01:05]} Nf6 {[%emt 0:01:19]} 6. a4 {[%emt 0:02:22]} Nd5 {[%emt 0:01:24]} 7. Qc2 {[%emt 0:01:38]} Nb4 {[%emt 0:01:35]} 8. Qd1 {[%emt 0:00:40]} Bf5 {[%emt 0:00:31]} 9. e4 {[%emt 0:00:07]} Bg4 {[%emt 0:00:23]} 10. Bxc4 {[%emt 0:00:24]} Bxf3 {[%emt 0:00:30]} 11. gxf3 {[%emt 0:02:52]} Qxd4 {[%emt 0:00:33]} 12. Qxd4 {[%emt 0:01:26]} Nc2+ {[%emt 0:00:02]} 13. Kf1 Nxd4 {[%emt 0:00:33]} 14. Kg2 {[%emt 0:00:50]} Nd7 {[%emt 0:00:48]} 15. Be3 {[%emt 0:01:01]} Nxf3 {[%emt 0:00:59]} 16. Bxf7+ {[%emt 0:00:09]} Kxf7 {[%emt 0:00:02]} 17. Kxf3 {[%emt 0:00:07]} Ne5+ {[%emt 0:02:48]} 18. Ke2 {[%emt 0:00:07]} g6 {[%emt 0:00:57]} 19. b3 {[%emt 0:02:36]} Bg7 {[%emt 0:00:08]} 20. Rac1 {[%emt 0:01:26]} Rhd8 {[%emt 0:00:41]} 21. Rhd1 {[%emt 0:00:28]} Ng4 {[%emt 0:02:24]} 22. Rxd8 {[%emt 0:08:56]} Rxd8 {[%emt 0:00:11]} 23. Rd1 {[%emt 0:07:43]} Rxd1 {[%emt 0:03:16]} 24. Nxd1 {[%emt 0:00:04]} Nxe3 {[%emt 0:02:22]} 25. Nxe3 {[%emt 0:00:06]} Be5 {[%emt 0:00:05]} 26. h3 {[%emt 0:00:06]} Bc7 {[%emt 0:00:31]} 27. Kd3 {[%emt 0:04:58]} Ke6 {[%emt 0:00:15]} 28. Ng2 {[%emt 0:03:59]} Kf6 {[%emt 0:05:42]} 29. f3 {[%emt 0:00:10]} e6 {[%emt 0:00:21]} 30. b4 {[%emt 0:00:26]} b5 {[%emt 0:02:33]} 31. axb5 {[%emt 0:02:39]} cxb5 {[%emt 0:00:01]} 32. Kd4 {[%emt 0:01:19]} Bb6+ {[%emt 0:00:42]} 33. Kd3 {[%emt 0:00:07]} a5 {[%emt 0:00:59]} 34. bxa5 {[%emt 0:00:10]} Bxa5 {[%emt 0:00:01]} 35. Nf4 {[%emt 0:01:57]} Ke5 {[%emt 0:01:28]} 36. Ne2 {[%emt 0:00:03]} Bb6 {[%emt 0:01:18]} 37. Kc3 {[%emt 0:00:12]} Bc5 {[%emt 0:00:29]} 38. Kd3 {[%emt 0:00:10]} g5 {[%emt 0:00:25]} 39. Kc3 {[%emt 0:00:11]} h5 {[%emt 0:01:10]} 40. Kd3 {[%emt 0:00:36]} Bf2 {[%emt 0:02:36]} 41. Kc3 {[%emt 0:02:23]} g4 {[%emt 0:05:31]} 42. fxg4 {[%emt 0:00:05]} hxg4 {[%emt 0:00:08]} 43. hxg4 {[%emt 0:00:03]} Kxe4 {[%emt 0:00:59]} 44. Kb4 {[%emt 0:00:46]} Kf3 {[%emt 0:00:21]} 45. Nc3 {[%emt 0:00:07]} Be1 {[%emt 0:00:04]} 46. g5 {[%emt 0:00:00]} 1/2-1/2

[Event "360 One Wealth GP-3 2024"]
[Site "Mumbai"]
[Date "2024.02.11"]
[Round "7.8"]
[White "Shreyas G Kaushik"]
[Black "Vihaan Ravi Rao"]
[Result "0-1"]
[ECO "B94"]
[WhiteElo "1416"]
[BlackElo "1184"]
[Annotator "NA COMBH RC"]
[PlyCount "62"]
[EventDate "2024.02.04"]
[EventType "swiss"]
[EventCountry "IND"]
[SourceTitle "playchess.com"]
[Source "ChessBase"]
[SourceQuality "1"]
[TimeControl "5400+30"]

1. e4 {[%emt 0:00:02]} c5 {[%emt 0:00:20]} 2. Nf3 {[%emt 0:00:06]} d6 {[%emt 0:00:11]} 3. d4 {[%emt 0:00:06]} cxd4 {[%emt 0:00:05]} 4. Nxd4 {[%emt 0:00:09]} Nf6 {[%emt 0:00:07]} 5. Nc3 {[%emt 0:00:06]} a6 {[%emt 0:00:07]} 6. Bg5 {[%emt 0:00:07]} Nbd7 {[%emt 0:02:13]} 7. f4 {[%emt 0:00:35]} Qc7 {[%emt 0:00:32]} 8. Qf3 {[%emt 0:00:40]} h6 {[%emt 0:00:30]} 9. Bh4 {[%emt 0:00:33]} g5 {[%emt 0:01:30]} 10. fxg5 {[%emt 0:03:21]} hxg5 {[%emt 0:00:17]} 11. Bxg5 {[%emt 0:00:19]} Qc5 {[%emt 0:01:04]} 12. Be3 {[%emt 0:03:31]} Ne5 {[%emt 0:00:41]} 13. Qe2 {[%emt 0:00:53]} Neg4 {[%emt 0:01:29]} 14. Bg1 {[%emt 0:01:58]} Qg5 {[%emt 0:16:55]} 15. Nf3 {[%emt 0:05:48]} Qh6 {[%emt 0:08:07]} 16. Nd2 {[%emt 0:05:39]} Ne5 {[%emt 0:06:30]} 17. Qe3 {[%emt 0:07:13]} Qg6 {[%emt 0:02:33]} 18. O-O-O {[%emt 0:01:44]} Bh6 {[%emt 0:03:38]} 19. Qd4 {[%emt 0:07:04]} Nc6 {[%emt 0:04:50]} 20. Qa4 {[%emt 0:03:22]} Bg4 {[%emt 0:05:45]} 21. Re1 {[%emt 0:01:45]} O-O {[%emt 0:06:23]} 22. Nd5 {[%emt 0:10:20]} Nxd5 {[%emt 0:03:56]} 23. exd5 {[%emt 0:00:18]} Bxd2+ {[%emt 0:00:44]} 24. Kxd2 {[%emt 0:00:07]} Qg5+ {[%emt 0:01:11]} 25. Be3 {[%emt 0:01:33]} Qxd5+ {[%emt 0:00:42]} 26. Kc1 {[%emt 0:00:06]} Ne5 {[%emt 0:06:11]} 27. Bh6 {[%emt 0:07:33]} Rfc8 {[%emt 0:05:26]} 28. Qf4 {[%emt 0:04:51]} Bh5 {[%emt 0:01:34]} 29. Kb1 {[%emt 0:15:50]} Rxc2 {[%emt 0:03:01]} 30. Kxc2 {[%emt 0:07:07]} Bg6+ {[%emt 0:00:03]} 31. Kc1 {[%emt 0:00:01] Check Result:-#4} Rc8+ {[%emt 0:00:02]} 0-1

[Event "360 One Wealth GP-3 2024"]
[Site "Mumbai"]
[Date "2024.02.11"]
[Round "7.9"]
[White "Mayanka Rakesh Rana"]
[Black "Sunil, Vaidya"]
[Result "0-1"]
[ECO "A46"]
[WhiteElo "1136"]
[BlackElo "1402"]
[Annotator "NA RC"]
[PlyCount "50"]
[EventDate "2024.02.04"]
[EventType "swiss"]
[EventCountry "IND"]
[SourceTitle "playchess.com"]
[Source "ChessBase"]
[SourceQuality "1"]
[TimeControl "5400+30"]

1. d4 {[%emt 0:00:01]} Nf6 {[%emt 0:01:07]} 2. Nf3 {[%emt 0:00:02]} e6 {[%emt 0:00:51]} 3. e3 {[%emt 0:01:29]} c5 {[%emt 0:00:45]} 4. Bd3 {[%emt 0:01:16]} cxd4 {[%emt 0:01:37]} 5. exd4 {[%emt 0:02:08]} Nc6 {[%emt 0:00:16]} 6. a3 {[%emt 0:01:20]} d5 {[%emt 0:01:40]} 7. Nc3 {[%emt 0:00:59]} a6 {[%emt 0:01:19]} 8. Bf4 {[%emt 0:03:04]} b5 {[%emt 0:01:08]} 9. O-O {[%emt 0:01:02]} Be7 {[%emt 0:03:26]} 10. Re1 {[%emt 0:01:40]} Bb7 {[%emt 0:02:07]} 11. Be5 {[%emt 0:02:48]} Rc8 {[%emt 0:00:58]} 12. Ne2 {[%emt 0:01:04]} Qb6 {[%emt 0:02:31]} 13. c3 {[%emt 0:03:39]} a5 {[%emt 0:01:42]} 14. Nf4 {[%emt 0:03:04]} Nxe5 {[%emt 0:01:42]} 15. Nxe5 {[%emt 0:04:00]} Bd6 {[%emt 0:09:10]} 16. Qe2 {[%emt 0:02:55]} O-O {[%emt 0:08:39]} 17. Bxb5 {[%emt 0:01:22]} Ne4 {[%emt 0:01:18]} 18. Nxe6 {[%emt 0:09:15]} fxe6 {[%emt 0:00:55]} 19. Nd7 {[%emt 0:00:18]} Qc7 {[%emt 0:01:29]} 20. Nxf8 {[%emt 0:01:20]} Bxh2+ {[%emt 0:00:25]} 21. Kh1 {[%emt 0:00:24]} Rxf8 {[%emt 0:00:16]} 22. Rf1 {[%emt 0:01:54]} Rf6 {[%emt 0:00:44]} 23. Bd3 {[%emt 0:00:48]} Rh6 {[%emt 0:00:41]} 24. Bxe4 {[%emt 0:00:41]} Bg1+ {[%emt 0:00:49]} 25. Kxg1 {[%emt 0:03:19]} Qh2# {[%emt 0:00:13]} 0-1

[Event "360 One Wealth GP-3 2024"]
[Site "Mumbai"]
[Date "2024.02.11"]
[Round "7.10"]
[White "Chakraborty Aryan"]
[Black "Dodhiya Punit"]
[Result "0-1"]
[ECO "A80"]
[WhiteElo "1137"]
[BlackElo "1369"]
[Annotator "NA RC"]
[PlyCount "34"]
[EventDate "2024.02.04"]
[EventType "swiss"]
[EventCountry "IND"]
[SourceTitle "playchess.com"]
[Source "ChessBase"]
[SourceQuality "1"]
[TimeControl "5400+30"]

1. d4 {[%emt 0:00:03]} e6 {[%emt 0:19:34]} 2. Bf4 {[%emt 0:00:20]} f5 {[%emt 0:05:35]} 3. e3 {[%emt 0:00:14]} Nf6 {[%emt 0:00:31]} 4. Nf3 {[%emt 0:00:45]} b6 {[%emt 0:00:18]} 5. Bd3 {[%emt 0:04:05]} Bb7 {[%emt 0:00:07]} 6. Nbd2 {[%emt 0:03:40]} d6 {[%emt 0:00:26]} 7. Qe2 {[%emt 0:01:14]} Nbd7 {[%emt 0:01:36]} 8. e4 {[%emt 0:09:00]} fxe4 {[%emt 0:19:33]} 9. Nxe4 {[%emt 0:00:16]} Qe7 {[%emt 0:00:10]} 10. Neg5 {[%emt 0:16:41]} O-O-O {[%emt 0:11:40]} 11. O-O-O {[%emt 0:22:23]} Re8 {[%emt 0:11:15]} 12. Rhe1 {[%emt 0:05:21]} Nd5 {[%emt 0:06:24]} 13. Bg3 {[%emt 0:09:23]} Nb4 {[%emt 0:04:18]} 14. Bc4 {[%emt 0:03:59]} g6 {[%emt 0:03:54]} 15. Qxe6 {[%emt 0:01:45]} Qxe6 {[%emt 0:01:27]} 16. Bxe6 {[%emt 0:01:02]} Bh6 {[%emt 0:00:17]} 17. a3 {[%emt 0:02:46]} Bxf3 {[%emt 0:02:04]} 0-1

[Event "360 One Wealth GP-3 2024"]
[Site "Mumbai"]
[Date "2024.02.11"]
[Round "7.11"]
[White "Iyer Vivek"]
[Black "Jha Mayan S"]
[Result "1-0"]
[ECO "A22"]
[WhiteElo "1359"]
[BlackElo "1051"]
[Annotator "NA RC"]
[PlyCount "75"]
[EventDate "2024.02.04"]
[EventType "swiss"]
[EventCountry "IND"]
[SourceTitle "playchess.com"]
[Source "ChessBase"]
[SourceQuality "1"]
[TimeControl "5400+30"]

1. c4 {[%emt 0:00:03]} e5 {[%emt 0:01:32]} 2. g3 {[%emt 0:00:02]} Bc5 {[%emt 0:01:32]} 3. Nc3 {[%emt 0:00:19]} Nf6 {[%emt 0:00:30]} 4. Bg2 {[%emt 0:00:27]} d6 {[%emt 0:00:25]} 5. Nf3 {[%emt 0:00:12]} Be6 {[%emt 0:00:39]} 6. d3 {[%emt 0:00:03]} h6 {[%emt 0:01:39]} 7. O-O {[%emt 0:00:10]} Qd7 {[%emt 0:00:15]} 8. Nd2 {[%emt 0:02:20]} Nc6 {[%emt 0:01:26]} 9. Nd5 {[%emt 0:00:23]} O-O-O {[%emt 0:02:47]} 10. a3 {[%emt 0:01:12]} Bh3 {[%emt 0:06:12]} 11. Nxf6 {[%emt 0:01:12]} gxf6 {[%emt 0:00:24]} 12. Ne4 {[%emt 0:00:30]} Bxg2 {[%emt 0:02:20]} 13. Kxg2 {[%emt 0:00:44]} f5 {[%emt 0:01:19]} 14. Nf6 {[%emt 0:01:53]} Qe6 {[%emt 0:01:44]} 15. Nd5 {[%emt 0:00:08]} f4 {[%emt 0:00:52]} 16. e3 {[%emt 0:00:48]} fxg3 {[%emt 0:01:28]} 17. fxg3 {[%emt 0:00:37]} Ne7 {[%emt 0:01:20]} 18. Rf6 {[%emt 0:00:33]} Qd7 {[%emt 0:03:17]} 19. Rxf7 {[%emt 0:00:12]} Rde8 {[%emt 0:00:50]} 20. b4 {[%emt 0:00:27]} Bb6 {[%emt 0:02:33]} 21. Qh5 {[%emt 0:03:10]} Qd8 {[%emt 0:02:01]} 22. Qh3+ {[%emt 0:00:00]} Kb8 {[%emt 0:01:57]} 23. Nf6 {[%emt 0:02:55]} c5 {[%emt 0:00:45]} 24. Nxe8 {[%emt 0:01:01]} Rxe8 {[%emt 0:01:00]} 25. Qxh6 {[%emt 0:00:00]} d5 {[%emt 0:05:37]} 26. bxc5 {[%emt 0:00:00]} Bxc5 {[%emt 0:00:17]} 27. Rb1 {[%emt 0:02:27]} dxc4 {[%emt 0:01:40]} 28. Qa6 {[%emt 0:05:29]} Qd5+ {[%emt 0:02:02]} 29. e4 {[%emt 0:01:30]} Qd7 {[%emt 0:02:59]} 30. Qxc4 {[%emt 0:00:28]} Bb6 {[%emt 0:02:02]} 31. Bg5 {[%emt 0:03:28]} Rh8 {[%emt 0:03:13]} 32. h4 {[%emt 0:00:00]} Rc8 {[%emt 0:03:03]} 33. Rxe7 {[%emt 0:02:41]} Qg4 {[%emt 0:02:06]} 34. Qa2 {[%emt 0:00:52]} Rf8 {[%emt 0:01:18]} 35. Rf7 {[%emt 0:01:45]} Rc8 {[%emt 0:01:38]} 36. Rbf1 {[%emt 0:00:40]} Bc5 {[%emt 0:06:59]} 37. Qd5 {[%emt 0:01:46]} Bxa3 {[%emt 0:00:52]} 38. Qxb7# {[%emt 0:00:34]} 1-0